bitfinex-derivatives/quotes_ETHF0:USTF0_20260303
["timestamp","ask_amount","ask_price","bid_price","bid_amount"]
[1772552017829,8.04167707,1953.9,1952.6,0.83311296]
[1772552017830,0.5853589,1953.6,1952.6,0.83311296]
[1772552018024,0.5853589,1953.6,1952.3,9.13564798]
[1772552018025,0.5853589,1953.6,1952.3,0.57700296]
[1772552018238,0.5853589,1953.4,1952.1,0.83317296]
[1772552018533,0.5853589,1953.4,1952.2,0.57700296]
[1772552018731,0.59153114,1953.4,1952.2,0.57700296]
[1772552019037,0.59153114,1953.4,1952.4,0.57700296]
[1772552019632,0.59153114,1953.4,1952.5,0.25612]
[1772552020032,0.59153114,1953.4,1952.6,0.57700296]
[1772552020532,0.59153114,1953.4,1952.8,0.57700296]
[1772552020834,0.59153114,1953.4,1952.7,0.25609]
[1772552021231,0.59153114,1953.4,1952.5,0.57700296]
[1772552021435,0.59153114,1953.4,1952.7,0.57700296]
[1772552021637,0.00617224,1953.4,1952.7,0.57700296]
[1772552022638,0.5853589,1954.5,1953.3,0.57700296]
[1772552022838,0.5853589,1954.5,1953.5,0.57700296]
[1772552023039,0.5853589,1954.5,1953.7,0.57700296]
[1772552023236,0.5853589,1954.5,1953.6,0.25598]
[1772552023637,0.59120069,1954.5,1953.7,0.57700296]
[1772552023838,0.00584179,1954.5,1953.7,0.57700296]
[1772552024240,0.59120069,1954.5,1953.7,0.57700296]
[1772552024440,0.59120069,1954.5,1953.6,0.00535747]
[1772552024635,0.59120069,1954.5,1953.8,0.57700296]
[1772552024842,0.00584179,1954.5,1953.8,0.57700296]
[1772552025635,0.59120069,1954.5,1953.6,0.00535747]
[1772552026345,7.30020069,1954.5,1953.6,0.00535747]
[1772552026646,0.5853589,1954.4,1953.1,0.83303296]
[1772552026941,0.5853589,1954.4,1953.2,0.57700296]
[1772552027337,0.5853589,1954.4,1953.1,0.83303296]
[1772552027542,0.5853589,1954.4,1953.1,0.83802642]
[1772552027843,0.5853589,1954.4,1953.1,0.26102346]
[1772552028041,0.5853589,1954.4,1953.1,0.00499346]
[1772552028245,0.58598522,1954.2,1953.1,0.00499346]
[1772552029147,0.58598522,1953.9,1952.6,0.25611]
[1772552029344,0.58598522,1953.7,1952.6,0.83324279]
[1772552029938,0.58598522,1953.5,1952.6,0.00638157]
[1772552030336,0.58598522,1953.5,1952.6,0.58351436]
[1772552031045,0.58598522,1953.5,1952.7,0.25609]
[1772552031741,0.58598522,1953.5,1952.8,0.57713279]
[1772552031936,0.58598522,1953.7,1952.8,0.57713279]
[1772552032137,0.58598522,1953.4,1952.6,0.00638157]
[1772552032444,0.58598522,1953.2,1951.9,0.57713279]
[1772552032742,0.58598522,1953.0,1951.9,0.57713279]
[1772552033341,0.58969713,1953.0,1951.9,0.00417717]
[1772552033536,0.58598522,1952.8,1951.9,0.00417717]
[1772552033941,0.58598522,1952.8,1951.4,0.57713279]
[1772552034339,0.58598522,1952.6,1951.4,0.25626]
[1772552034543,0.58598522,1952.6,1951.0,6.3055]
[1772552034544,0.58598522,1952.6,1951.7,0.57713279]
[1772552034936,0.58598522,1952.6,1951.7,0.58136409]
[1772552035143,0.58598522,1952.6,1951.7,0.0042313]
[1772552035746,0.58598522,1952.4,1951.7,0.0042313]
[1772552036247,0.58598522,1952.4,1951.2,0.57713279]
[1772552037043,0.58598522,1952.4,1951.2,0.58250375]
[1772552037244,0.58598522,1952.4,1951.4,0.57713279]
[1772552037439,0.58598522,1952.4,1951.6,0.57713279]
[1772552037645,0.58598522,1952.4,1951.7,0.57713279]
[1772552037947,0.58598522,1952.9,1951.7,0.57713279]
[1772552039746,0.58598522,1952.9,1951.6,0.25623]
[1772552039947,0.58598522,1952.9,1951.6,0.83336279]
[1772552040149,0.58598522,1952.9,1951.7,0.57713279]
[1772552040745,0.58598522,1952.8,1951.5,0.57713279]
[1772552040956,0.58598522,1952.6,1951.3,0.57713279]
[1772552041247,0.58598522,1952.6,1951.4,0.57713279]
[1772552041551,0.58598522,1952.6,1951.6,0.57713279]
[1772552041739,0.58598522,1952.4,1951.2,0.00537096]
[1772552042044,0.58598522,1952.0,1950.6,0.57713279]
[1772552042246,0.58598522,1951.8,1950.6,0.57713279]
[1772552042439,0.58598522,1951.8,1950.5,0.57713279]
[1772552042844,0.58598522,1951.6,1950.2,0.57713279]
[1772552043050,0.58598522,1951.5,1950.4,0.57713279]
[1772552043649,0.58598522,1951.5,1950.2,0.58170793]
[1772552043853,0.58598522,1951.4,1950.2,0.00457514]
[1772552044151,0.58598522,1951.4,1950.6,0.57713279]
[1772552044349,0.58598522,1951.4,1950.3,0.57713279]
[1772552044548,0.58598522,1951.4,1950.2,0.00457514]
[1772552044753,0.58598522,1951.4,1950.4,0.57713279]
[1772552045052,0.58598522,1951.4,1950.7,0.83349279]
[1772552045252,0.59115171,1951.6,1950.8,0.57713279]
[1772552045551,0.59115171,1951.6,1950.9,0.83346279]
[1772552046349,0.00516649,1951.6,1951.0,0.57713279]
[1772552046548,0.59115171,1951.6,1950.7,0.57713279]
[1772552046746,0.59115171,1951.6,1950.6,0.25637]
[1772552046951,0.59115171,1951.6,1950.9,0.57713279]
[1772552047146,0.00516649,1951.6,1950.9,0.57713279]
[1772552047347,0.58598522,1952.3,1951.3,0.57713279]
[1772552047546,0.58598522,1952.3,1951.5,0.57713279]
[1772552048156,0.58598522,1952.3,1951.4,0.25626]
[1772552048157,0.58598522,1952.3,1951.2,0.57713279]
[1772552048352,0.59206464,1952.3,1951.2,0.57713279]
[1772552048750,0.59206464,1952.3,1951.4,0.57713279]
[1772552048955,0.59206464,1952.3,1951.3,0.25628]
[1772552048956,0.59206464,1952.3,1951.6,0.57713279]
[1772552049151,0.00607942,1952.3,1951.6,0.58188938]
[1772552049457,0.44167444,1952.3,1951.6,0.58188938]
[1772552049654,0.58598522,1953.0,1951.7,0.83336279]
[1772552050357,0.58598522,1953.0,1951.8,0.57713279]
[1772552050556,0.59074333,1953.0,1951.8,0.57713279]
[1772552051551,0.59074333,1953.0,1952.0,0.57713279]
[1772552051757,0.59074333,1953.0,1952.2,0.57713279]
[1772552051959,0.59074333,1953.0,1952.0,0.57713279]
[1772552052270,0.59074333,1953.0,1951.6,0.83812938]
[1772552052560,0.59074333,1953.0,1951.7,0.57713279]
[1772552052862,0.59074333,1953.0,1951.9,0.57713279]
[1772552053453,0.59074333,1953.0,1952.1,0.57713279]
[1772552054358,0.59074333,1953.0,1952.3,0.57713279]
[1772552054557,0.00475811,1953.0,1952.3,0.57713279]
[1772552055061,0.58598522,1953.4,1952.3,0.57713279]
[1772552055760,0.58598522,1953.6,1952.7,0.57713279]
[1772552055959,0.00426978,1953.6,1952.7,0.57713279]
[1772552056659,0.58598522,1954.1,1952.9,0.57713279]
[1772552057166,0.58598522,1954.1,1952.6,0.57713279]
[1772552057464,0.58598522,1954.1,1952.9,0.25607]
[1772552057763,0.59235974,1954.1,1953.0,0.57713279]
[1772552057962,0.59235974,1954.1,1953.0,0.58214234]
[1772552058752,0.59235974,1954.1,1953.0,0.00500955]
[1772552058954,0.59235974,1954.1,1953.1,0.58250488]
[1772552060263,0.59235974,1954.1,1953.3,0.54244293]
[1772552060264,0.00637452,1954.1,1953.3,0.54244293]
[1772552060464,0.00637452,1954.1,1953.2,0.25603]
[1772552060465,0.00637452,1954.1,1953.5,0.54244293]
[1772552060664,0.56210337,1954.1,1953.4,0.256]
[1772552061065,0.56210337,1954.1,1953.4,0.79844293]
[1772552061265,0.56210337,1954.1,1953.5,0.54244293]
[1772552061460,0.56210337,1954.1,1953.2,0.54244293]
[1772552061862,0.56210337,1954.1,1953.4,0.54244293]
[1772552062263,0.00637452,1954.1,1953.6,0.54244293]
[1772552062463,0.55572885,1954.3,1953.6,0.54244293]
[1772552062669,0.55572885,1954.3,1953.3,0.54244293]
[1772552063366,0.55990385,1954.3,1953.4,0.54244293]
[1772552063563,0.004175,1954.3,1953.6,0.54244293]
[1772552063761,0.55990385,1954.3,1953.5,0.79843293]
[1772552063965,0.55990385,1954.3,1953.2,0.54244293]
[1772552065669,0.55990385,1954.3,1953.0,0.26105955]
[1772552065969,0.55572885,1954.1,1953.0,0.00500955]
[1772552066369,0.55572885,1954.1,1953.2,0.54244293]
[1772552066764,0.55572885,1954.1,1953.0,0.00500955]
[1772552067671,0.55572885,1953.9,1952.6,0.79854293]
[1772552067865,0.55572885,1953.8,1952.9,0.54244293]
[1772552068671,0.55572885,1953.8,1953.0,0.25605]
[1772552068970,0.55572885,1953.8,1952.9,0.00371833]
[1772552069961,0.55572885,1953.8,1952.9,0.54616126]
[1772552070159,0.55572885,1953.8,1953.0,0.54244293]
[1772552071173,0.55572885,1953.8,1952.9,0.25978833]
[1772552071370,0.55572885,1953.8,1952.9,0.80223126]
[1772552071573,0.55572885,1953.8,1953.0,0.54244293]
[1772552072871,0.55572885,1953.6,1952.4,0.79857293]
[1772552073077,0.55572885,1953.6,1952.7,0.54244293]
[1772552073472,0.55572885,1953.6,1952.6,0.25611]
[1772552073869,0.55572885,1953.2,1951.9,1.36995267]
[1772552074075,0.55572885,1953.2,1951.9,1.9123956]
[1772552074567,0.55572885,1953.0,1951.9,1.9123956]
[1772552074767,0.55572885,1953.0,1951.7,0.54244293]
[1772552074971,0.55572885,1953.0,1951.9,0.54244293]
[1772552075977,0.55572885,1952.8,1951.7,0.00362196]
[1772552076173,0.56059675,1952.8,1951.7,0.54606489]
[1772552076678,0.56059675,1952.8,1951.7,0.00362196]
[1772552076878,0.56059675,1952.8,1952.0,1.0]
[1772552077876,0.56059675,1952.8,1952.0,0.39739212]
[1772552078076,0.56059675,1952.8,1951.7,0.54606489]
[1772552078579,0.56059675,1952.8,1951.9,0.54244293]
[1772552079177,0.0048679,1952.8,1952.1,0.54244293]
[1772552079378,0.49512469,1953.8,1952.5,0.54244293]
[1772552079979,0.49512469,1954.3,1953.3,0.54244293]
[1772552080480,0.50101453,1954.3,1953.3,0.54883249]
[1772552081281,0.50101453,1954.3,1953.3,0.00638956]
[1772552081282,6.79597453,1954.3,1953.3,0.00638956]
[1772552081581,6.79597453,1954.3,1952.7,0.54244293]
[1772552081582,0.49394109,1954.1,1952.8,0.54244293]
[1772552081775,0.49394109,1954.1,1953.0,0.54244293]
[1772552082384,0.49394109,1954.1,1953.0,0.54726902]
[1772552083676,0.00588984,1954.3,1953.2,0.54244293]
[1772552083985,0.00588984,1954.3,1953.4,0.54244293]
[1772552084178,0.49777914,1954.3,1953.4,0.54244293]
[1772552085382,0.00588984,1954.3,1953.4,0.54244293]
[1772552085580,0.00588984,1954.3,1953.6,0.54244293]
[1772552086582,0.49509387,1954.3,1953.1,0.54244293]
[1772552087186,0.49509387,1954.8,1953.7,0.54244293]
[1772552087785,6.71,1954.9,1953.0,6.30386609]
[1772552087786,0.49509387,1954.4,1953.2,0.54244293]
[1772552087987,6.71,1954.9,1953.2,0.54244293]
[1772552087988,0.49484647,1954.2,1953.2,0.54244293]
[1772552088287,0.49484647,1954.1,1953.2,0.54244293]
[1772552088483,0.49745914,1953.9,1953.0,0.00482609]
[1772552088683,0.49745914,1953.9,1953.0,0.60673442]
[1772552089283,0.49745914,1953.9,1953.0,0.26087609]
[1772552089483,0.50183344,1954.2,1953.1,0.60190833]
[1772552090779,0.50513591,1953.8,1953.0,0.00482609]
[1772552090979,0.50030982,1953.6,1952.5,0.60190833]
[1772552091190,0.50030982,1953.4,1952.3,0.60190833]
[1772552091488,0.50030982,1953.3,1952.3,0.60190833]
[1772552091890,0.50030982,1953.1,1952.1,0.60190833]
[1772552092190,0.50030982,1953.1,1952.1,0.60846977]
[1772552092992,0.49981638,1952.9,1952.1,0.00656144]
[1772552093486,0.49981638,1952.7,1951.8,0.60190833]
[1772552094287,0.49981638,1952.7,1951.5,0.85814833]
[1772552094486,0.50487261,1952.7,1951.5,0.85814833]
[1772552094789,0.49059027,1953.4,1952.3,0.60190833]
[1772552095594,0.49059027,1953.4,1952.5,0.60190833]
[1772552095798,0.49620845,1953.4,1952.5,0.60190833]
[1772552096994,0.00561818,1953.4,1952.5,0.60190833]
[1772552097694,0.48785132,1953.4,1952.2,0.60190833]
[1772552097904,0.48223314,1953.2,1952.2,0.60190833]
[1772552100294,0.00561818,1953.4,1951.9,0.25619]
[1772552100295,0.00561818,1953.4,1952.5,0.25612]
[1772552100495,0.00561818,1953.4,1952.8,0.60190833]
[1772552100694,0.25602,1953.3,1952.3,0.60190833]
[1772552100993,0.46540013,1953.2,1952.3,0.60190833]
[1772552101194,0.00561818,1953.4,1952.3,0.60190833]
[1772552101392,0.00561818,1953.4,1952.5,0.60190833]
[1772552101699,0.47101831,1953.4,1952.5,0.60190833]
[1772552102398,0.47101831,1953.4,1952.0,0.60190833]
[1772552102698,0.00561818,1953.4,1952.4,0.60190833]
[1772552102891,0.00561818,1953.4,1952.6,0.60190833]
[1772552103089,0.00561818,1953.4,1952.8,0.60190833]
[1772552104098,0.00561818,1953.4,1952.3,6.30101]
[1772552104099,0.46890717,1953.4,1952.6,0.60190833]
[1772552104298,0.46890717,1953.4,1952.3,0.60190833]
[1772552104495,0.45830587,1953.2,1952.3,0.60190833]
[1772552104691,0.45830587,1953.0,1952.3,0.60190833]
[1772552105294,0.45830587,1953.0,1951.7,0.25623]
[1772552105295,0.45830587,1952.8,1951.8,0.60190833]
[1772552106403,0.00561818,1953.4,1952.2,0.60190833]
[1772552106800,0.00561818,1953.4,1952.6,0.60190833]
[1772552107003,0.00561818,1953.4,1952.8,0.60190833]
[1772552107297,7.1681902,1953.9,1952.8,0.60190833]
[1772552107502,0.46280838,1953.8,1952.8,0.60190833]
[1772552108108,0.46928246,1953.8,1952.8,0.60190833]
[1772552109611,0.00647408,1953.8,1952.8,0.60190833]
[1772552109806,0.00647408,1953.8,1952.5,6.30066]
[1772552109807,0.00647408,1953.8,1953.0,0.60190833]
[1772552110004,0.00647408,1953.8,1953.0,0.60571017]
[1772552111905,0.47155133,1953.8,1953.0,0.00380184]
[1772552112301,0.46507725,1953.6,1952.5,0.60190833]
[1772552112502,0.46127919,1953.2,1952.0,0.60190833]
[1772552112707,6.71,1953.5,1952.2,0.60190833]
[1772552112906,6.71,1953.5,1952.4,0.60190833]
[1772552113108,0.00647408,1953.8,1952.8,0.60190833]
[1772552113507,0.00647408,1953.8,1953.0,0.60190833]
[1772552114607,0.45923385,1954.7,1953.2,0.60190833]
[1772552114805,0.45923385,1954.5,1953.4,0.60190833]
[1772552115208,6.71,1954.6,1953.4,0.60190833]
[1772552115209,7.16923385,1954.6,1953.4,0.60190833]
[1772552115616,7.17388107,1954.6,1953.5,0.25599]
[1772552115910,0.00464722,1954.6,1953.6,0.60190833]
[1772552116110,0.00464722,1954.6,1953.8,0.60190833]
[1772552117410,0.46873178,1955.2,1953.7,0.60190833]
[1772552117808,0.46873178,1955.2,1953.9,0.57344282]
[1772552118013,6.71,1955.3,1953.9,0.57344282]
[1772552118217,7.18377661,1955.3,1953.9,0.57344282]
[1772552118411,6.71400843,1955.3,1954.1,0.57344282]
[1772552118605,0.00400843,1955.3,1954.3,0.57344282]
[1772552118810,0.00400843,1955.3,1954.3,0.57919602]
[1772552119210,6.709,1955.7,1954.5,0.57344282]
[1772552119406,6.709,1955.7,1954.7,0.57344282]
[1772552119611,7.18607419,1956.6,1955.3,0.54352385]
[1772552119812,0.47707419,1956.5,1955.3,0.54352385]
[1772552120009,0.47707419,1956.4,1955.3,0.54352385]
[1772552120309,0.47707419,1956.2,1955.3,0.54352385]
[1772552120611,0.25562,1956.3,1955.3,0.54352385]
[1772552120913,0.47575596,1956.2,1955.3,0.54352385]
[1772552121112,0.47575596,1956.2,1954.8,0.54352385]
[1772552121614,0.00428158,1956.4,1954.8,0.54352385]
[1772552121615,0.00428158,1956.4,1955.2,0.54352385]
[1772552122214,0.00428158,1956.4,1955.4,0.54352385]
[1772552122612,0.48949911,1956.4,1955.4,0.54352385]
[1772552122908,0.48949911,1956.4,1955.0,0.54352385]
[1772552123312,0.48521753,1956.3,1955.0,0.54352385]
[1772552123917,0.48521753,1956.1,1955.0,0.54352385]
[1772552124212,0.48521753,1955.9,1955.0,0.54352385]
[1772552125013,0.25571,1955.6,1954.4,0.54352385]
[1772552125213,0.48747997,1955.1,1954.3,0.0057532]
[1772552125513,0.48747997,1954.9,1953.8,0.54352385]
[1772552125720,0.48172677,1954.7,1953.2,0.54352385]
[1772552126213,0.48172677,1954.5,1953.2,0.54352385]
[1772552126414,0.48172677,1954.3,1953.2,0.54352385]
[1772552126612,0.48172677,1954.3,1953.2,0.54980808]
[1772552127324,0.48172677,1954.3,1953.2,0.00628423]
[1772552127711,0.2559,1954.2,1953.2,0.00628423]
[1772552127915,0.48441709,1954.1,1953.2,0.00628423]
[1772552128117,0.2559,1954.2,1952.8,0.54352385]
[1772552128118,0.48441709,1953.9,1952.8,0.54352385]
[1772552128317,0.48441709,1953.7,1952.8,0.54352385]
[1772552128816,0.48441709,1953.7,1952.0,0.54352385]
[1772552129220,0.48441709,1953.7,1952.0,0.54816087]
[1772552129422,6.705,1953.8,1952.0,0.54816087]
[1772552129423,0.48080147,1953.5,1952.0,0.54816087]
[1772552130215,0.48080147,1953.3,1952.0,0.54816087]
[1772552130418,0.48080147,1953.1,1952.0,0.54816087]
[1772552130619,0.48567411,1953.1,1952.0,0.54816087]
[1772552131121,0.00487264,1953.1,1952.0,0.54816087]
[1772552131519,0.48103449,1953.1,1952.0,0.54816087]
[1772552132016,0.00487264,1953.1,1952.2,0.54352385]
[1772552132222,6.707,1953.5,1952.2,0.54352385]
[1772552132623,7.18544095,1953.5,1952.2,0.54352385]
[1772552132817,0.47844095,1954.0,1952.6,0.54352385]
[1772552133024,6.707,1953.9,1952.6,0.54352385]
[1772552133318,0.47844095,1953.8,1952.6,0.54352385]
[1772552133719,0.00551576,1953.9,1952.8,0.54352385]
[1772552134316,0.48918422,1953.9,1952.8,0.54352385]
[1772552134514,0.48918422,1953.9,1952.5,0.54352385]
[1772552136126,0.00551576,1953.9,1952.7,0.54352385]
[1772552136623,0.48850172,1953.9,1952.7,0.54352385]
[1772552138029,0.00551576,1953.9,1952.7,0.54352385]
[1772552138228,0.00551576,1953.9,1952.9,0.54352385]
[1772552138828,6.708,1954.2,1953.3,0.54352385]
[1772552139227,6.708,1954.6,1953.5,0.54352385]
[1772552139530,0.48876077,1954.5,1953.2,0.54352385]
[1772552139719,0.49270033,1954.5,1953.2,0.54777696]
[1772552140120,7.20170033,1954.5,1953.2,0.54777696]
[1772552140529,0.49136619,1954.4,1953.2,0.54777696]
[1772552142121,6.71293956,1954.5,1953.4,0.54352385]
[1772552142827,6.71293956,1954.5,1953.6,0.54352385]
[1772552143429,0.49141289,1954.4,1953.6,0.54352385]
[1772552143930,0.49141289,1954.4,1953.3,0.54352385]
[1772552145030,6.71293956,1954.5,1953.3,0.54352385]
[1772552145228,0.00393956,1954.5,1953.7,0.54352385]
[1772552145426,6.708,1954.9,1953.9,0.54352385]
[1772552145829,0.4934712,1955.2,1954.1,0.54352385]
[1772552146031,0.25567,1956.0,1954.5,0.54352385]
[1772552146230,6.708,1955.7,1954.5,0.54352385]
[1772552146532,0.49276519,1955.6,1954.5,0.54352385]
[1772552147125,6.71362021,1955.7,1954.7,0.54352385]
[1772552147327,0.00562021,1955.7,1954.9,0.54352385]
[1772552147929,6.708,1956.2,1955.1,0.56468841]
[1772552148234,7.20620489,1956.2,1955.1,0.56468841]
[1772552148634,0.49999557,1955.8,1954.8,0.56468841]
[1772552148832,6.707,1955.7,1954.8,0.56468841]
[1772552149730,0.00490797,1955.8,1954.8,0.56468841]
[1772552150231,0.00490797,1955.8,1954.8,0.82049841]
[1772552150537,0.00490797,1955.8,1954.9,0.56468841]
[1772552151036,0.5001008,1956.4,1955.1,0.56468841]
[1772552152037,0.00575822,1956.4,1955.3,0.56468841]
[1772552152233,0.50585902,1956.4,1955.3,0.56468841]
[1772552152932,0.50061916,1956.0,1954.8,0.56468841]
[1772552153132,6.705,1955.9,1954.8,0.56468841]
[1772552153329,6.705,1955.9,1955.0,0.56468841]
[1772552153936,0.75625916,1956.2,1955.0,0.56468841]
[1772552154538,0.49829845,1956.2,1955.0,0.56468841]
[1772552155438,0.49829845,1956.0,1955.0,0.56468841]
[1772552155639,0.49829845,1955.8,1955.0,0.56468841]
[1772552155839,7.20229845,1955.8,1955.0,0.56468841]
[1772552156339,0.49829845,1955.7,1955.0,0.56468841]
[1772552156831,0.25574,1955.4,1954.8,0.56468841]
[1772552157036,6.704,1955.8,1954.8,0.56468841]
[1772552157241,0.49713948,1955.6,1954.8,0.56468841]
[1772552157939,6.704,1955.8,1954.7,0.00381975]
[1772552157940,0.49713948,1955.4,1954.7,0.00381975]
[1772552158235,7.20113948,1955.3,1954.7,0.00381975]
[1772552159439,0.49564952,1955.2,1954.7,0.00381975]
[1772552159738,6.704,1955.3,1954.7,0.56850816]
[1772552159941,6.704,1955.3,1954.7,0.5621337]
[1772552160140,6.704,1955.3,1954.0,0.56468841]
[1772552160141,0.59583334,1955.0,1954.0,0.56468841]
[1772552160639,0.59583334,1954.8,1953.5,0.56468841]
[1772552160840,0.59583334,1954.6,1953.5,0.57124215]
[1772552161034,6.10142339,1954.7,1953.8,0.25595]
[1772552161231,0.00380104,1954.8,1953.9,0.56468841]
[1772552161440,0.00380104,1954.8,1954.1,0.56468841]
[1772552161638,0.59963438,1954.8,1954.1,0.56468841]
[1772552161842,0.59583334,1954.7,1953.6,0.56468841]
[1772552162136,0.59583334,1954.5,1953.5,0.00655374]
[1772552162341,0.59583334,1954.3,1953.5,0.00655374]
[1772552163340,0.59583334,1953.9,1952.6,0.56468841]
[1772552163535,0.59583334,1953.7,1952.6,0.56468841]
[1772552163733,6.704,1953.8,1952.8,0.56468841]
[1772552163935,0.59583334,1953.7,1952.8,0.56468841]
[1772552164341,0.59583334,1953.7,1952.8,0.56830432]
[1772552164544,6.704,1953.8,1953.0,0.56468841]
[1772552164838,6.704,1954.1,1953.2,0.56468841]
[1772552165051,7.29983334,1954.4,1953.4,0.56468841]
[1772552165248,0.59583334,1954.4,1953.6,0.56468841]
[1772552165450,0.00380104,1954.8,1954.0,0.56468841]
[1772552165752,0.59963438,1954.8,1954.0,0.56468841]
[1772552165949,0.00380104,1954.8,1954.0,0.82060841]
[1772552166249,0.00380104,1954.8,1954.1,0.56468841]
[1772552166444,0.59963438,1954.8,1953.6,0.56468841]
[1772552166955,0.59583334,1954.6,1953.6,0.56468841]
[1772552167248,0.59583334,1954.6,1952.5,3.22012837]
[1772552167249,0.59583334,1954.2,1953.1,0.56468841]
[1772552167452,0.59583334,1954.0,1952.9,0.56468841]
[1772552167841,0.25594,1953.9,1952.6,0.56468841]
[1772552168046,0.59583334,1953.6,1952.6,0.56468841]
[1772552168247,0.59583334,1953.4,1952.6,0.56468841]
[1772552168441,0.60230887,1953.4,1952.6,0.56468841]
[1772552168642,0.00647553,1953.4,1952.8,0.56830432]
[1772552169650,0.25591,1954.2,1952.8,0.56830432]
[1772552169651,0.59583334,1954.0,1953.0,0.56468841]
[1772552169952,0.59583334,1954.7,1953.6,0.56468841]
[1772552170652,0.00623202,1954.7,1953.8,0.56468841]
[1772552171056,0.60206536,1954.7,1953.8,0.56468841]
[1772552171449,0.59583334,1954.5,1953.3,0.56468841]
[1772552172453,0.00623202,1954.7,1953.3,0.56468841]
[1772552172454,0.00623202,1954.7,1953.6,7.11776841]
[1772552172759,0.60206536,1954.7,1953.6,0.56468841]
[1772552172963,0.59583334,1954.5,1953.6,0.56468841]
[1772552173263,0.59583334,1954.5,1953.4,0.56468841]
[1772552173463,0.59583334,1954.5,1953.6,0.56468841]
[1772552174264,0.00623202,1954.7,1953.8,0.56468841]
[1772552174662,0.00623202,1954.7,1953.3,3.22012837]
[1772552174663,0.60206536,1954.7,1954.0,0.56468841]
[1772552174962,0.60206536,1954.7,1953.3,0.56468841]
[1772552175163,0.60206536,1954.7,1953.7,0.56468841]
[1772552177256,0.00623202,1954.7,1953.9,0.56468841]
[1772552177862,6.706,1955.0,1953.5,6.29741]
[1772552177863,6.706,1955.0,1954.3,0.58231097]
[1772552178161,0.5440486,1954.9,1954.1,0.58231097]
[1772552178469,6.706,1955.0,1954.1,0.58231097]
[1772552178664,0.5440486,1954.9,1954.1,0.58231097]
[1772552178864,0.00405234,1954.9,1954.1,0.84231603]
[1772552179159,0.00405234,1954.9,1954.2,0.58231097]
[1772552179757,0.57775385,1954.9,1954.1,0.00410506]
[1772552179963,0.57775385,1954.9,1954.1,0.57539031]
[1772552181567,0.57775385,1954.9,1954.1,0.00410506]
[1772552182068,0.00405234,1954.9,1954.1,0.57539031]
[1772552183267,0.57370151,1955.3,1954.3,0.57128525]
[1772552183766,2.41932487,1955.8,1954.3,0.57128525]
[1772552183767,7.27970151,1955.8,1954.5,0.57128525]
[1772552184158,0.57370151,1955.8,1954.7,0.57128525]
[1772552184361,6.66938765,1956.4,1954.7,0.57128525]
[1772552184362,0.57370151,1956.4,1955.1,0.57128525]
[1772552185268,0.57370151,1956.4,1955.3,0.57128525]
[1772552185568,0.57370151,1955.8,1954.8,0.57128525]
[1772552186266,0.57370151,1956.2,1954.8,0.57128525]
[1772552187064,0.57370151,1956.2,1955.2,0.57128525]
[1772552187265,0.57887547,1956.4,1955.3,0.25575]
[1772552187461,0.57887547,1956.4,1955.4,0.57128525]
[1772552187666,0.00517396,1956.4,1955.4,0.57128525]
[1772552189373,0.57887547,1956.4,1955.4,0.57128525]
[1772552189573,0.00517396,1956.4,1955.4,0.57128525]
[1772552190270,0.00517396,1956.4,1955.5,0.25573]
[1772552190573,0.00517396,1956.4,1955.6,0.57128525]
[1772552190773,0.57370151,1956.2,1955.5,0.00547676]
[1772552191170,0.57370151,1956.0,1955.5,6.76e-06]
[1772552191371,0.57370151,1955.8,1955.5,6.76e-06]
[1772552191872,0.57370151,1955.8,1954.8,0.57128525]
[1772552192476,0.57370151,1956.3,1955.0,0.57128525]
[1772552192870,0.57370151,1956.3,1955.2,0.57128525]
[1772552193566,0.57370151,1955.9,1955.0,0.00570501]
[1772552193771,0.57370151,1955.8,1955.0,0.00570501]
[1772552194174,0.57370151,1956.2,1955.1,0.57128525]
[1772552194570,0.57887547,1956.4,1955.5,0.57128525]
[1772552196574,0.57370151,1956.8,1955.7,0.57128525]
[1772552197078,0.57370151,1956.8,1955.9,0.57128525]
[1772552197278,0.57370151,1956.8,1955.8,0.25569]
[1772552197279,0.57370151,1956.8,1955.4,0.57128525]
[1772552197480,0.57370151,1956.8,1955.6,0.57128525]
[1772552197676,0.57806499,1956.8,1955.6,0.57128525]
[1772552198680,0.57370151,1956.4,1955.3,0.57128525]
[1772552199074,0.57370151,1956.7,1955.5,0.57128525]
[1772552199977,0.57370151,1956.7,1955.7,0.57128525]
[1772552201581,0.57370151,1956.7,1955.9,0.57128525]
[1772552201782,0.00436348,1956.8,1955.9,0.57128525]
[1772552201973,0.00436348,1956.8,1956.1,0.57128525]
[1772552202174,0.00436348,1956.8,1956.2,0.82692525]
[1772552202373,0.57370151,1957.3,1956.5,0.57128525]
[1772552202973,0.57370151,1958.4,1956.9,0.57128525]
[1772552203277,0.57370151,1958.3,1957.2,0.26179277]
[1772552203582,0.57370151,1957.9,1956.9,0.00557775]
[1772552203772,0.57370151,1957.8,1956.9,0.00557775]
[1772552203975,0.57370151,1958.2,1956.9,0.26737052]
[1772552204381,0.57370151,1958.2,1957.1,0.26179277]
[1772552204578,0.00619708,1958.4,1957.3,0.24840765]
[1772552204784,0.57370151,1959.1,1958.0,0.24840765]
[1772552205081,0.57370151,1959.6,1958.6,0.24840765]
[1772552205279,0.32625283,1959.7,1959.0,0.24840765]
[1772552205479,0.57370151,1960.2,1959.2,0.24840765]
[1772552205885,0.57754438,1960.2,1959.2,0.00427382]
[1772552206183,0.57370151,1960.1,1959.2,0.00427382]
[1772552206385,0.57370151,1959.7,1958.2,0.24377881]
[1772552206584,0.57370151,1959.5,1958.2,0.24377881]
[1772552206781,0.57370151,1959.5,1958.0,0.24377881]
[1772552207277,0.57370151,1958.9,1958.0,0.00520164]
[1772552207480,0.57370151,1958.7,1958.0,0.00520164]
[1772552207679,0.57859781,1958.7,1957.5,0.24377881]
[1772552207882,0.57859781,1958.7,1957.6,0.24274619]
[1772552208276,0.54253442,1959.2,1957.8,0.24274619]
[1772552209482,0.54850691,1959.2,1958.2,0.22179553]
[1772552209687,0.00597249,1959.2,1958.2,6.50413553]
[1772552209885,0.54253442,1959.6,1958.3,0.22179553]
[1772552210084,0.54253442,1959.6,1958.4,0.22179553]
[1772552210280,0.54253442,1959.6,1958.6,0.22179553]
[1772552210479,0.95334565,1960.4,1958.8,0.22397424]
[1772552210480,0.54253442,1959.9,1958.8,0.22397424]
[1772552210786,0.54253442,1959.9,1958.4,6.28169]
[1772552210787,0.54654108,1959.9,1958.4,0.22397424]
[1772552211190,0.54654108,1959.9,1959.0,0.22397424]
[1772552211391,0.54654108,1959.9,1958.4,0.22397424]
[1772552211584,6.696,1959.8,1958.4,0.22397424]
[1772552211789,0.54253442,1959.7,1958.5,0.22397424]
[1772552212381,0.54253442,1959.7,1958.6,0.25532]
[1772552212682,0.54654108,1959.9,1958.6,0.23174339]
[1772552213788,0.54654108,1959.9,1959.1,0.23174339]
[1772552213789,0.00400666,1959.9,1959.1,0.23174339]
[1772552214184,0.54253442,1960.7,1959.3,0.23174339]
[1772552214683,0.54253442,1960.5,1958.9,6.694]
[1772552214996,0.54253442,1960.5,1959.0,0.24936561]
[1772552215197,0.54253442,1960.3,1959.0,0.25567891]
[1772552215489,0.00436878,1960.5,1959.2,0.24936561]